[Event "44th Chess Olympiad Open 2022"]
[Site "Chennai"]
[Date "2022.08.05"]
[Round "7.76"]
[White "Tsephe, Lebajoa"]
[Black "Amini, Habibullah"]
[Result "0-1"]
[ECO "A05"]
[WhiteElo "1712"]
[BlackElo "2035"]
[Annotator "TA"]
[PlyCount "76"]
[EventDate "2022.07.29"]
[EventType "team-tourn"]
[EventCountry "IND"]
[SourceTitle "playchess.com"]
[Source "ChessBase"]
[SourceQuality "1"]
[WhiteTeam "Lesotho"]
[BlackTeam "Afghanistan"]
[WhiteTeamCountry "LES"]
[BlackTeamCountry "AFG"]
[TimeControl "40/5400+30:1800+30"]

{[%evp 15,76,-8,22,-14,0,0,0,0,-4,0,0,0,0,-18,-16,-10,-8,-14,-13,-6,-10,-29,-33,-41,-20,-26,-42,-54,-64,-312,-295,-286,-138,-152,-151,-144,-150,-136,-149,-151,-147,-166,-132,-130,-132,-198,-197,-193,-175,-277,-277,-277,-277,-277,-277,-662,-660,-862,-659,-626,-628,-1011,-968]} 1. Nf3 {[%emt 0:00:36]} Nf6 {[%emt 0:00:54]} 2. g3 {[%emt 0:00:14]} g6 {[%emt 0:02:02]} 3. Bg2 {[%emt 0:00:06]} Bg7 {[%emt 0:00:06]} 4. O-O {[%emt 0:00:06]} O-O {[%emt 0:00:07]} 5. d3 {[%emt 0:00:06]} c5 {[%emt 0:00:50]} 6. e4 {[%emt 0:00:12]} Nc6 {[%emt 0:00:24]} 7. c3 {[%emt 0:00:25]} d6 {[%emt 0:01:29]} 8. Nbd2 {[%emt 0:00:37]} Nd7 {[%emt 0:04:29]} 9. h3 {[%emt 0:01:26] A05: Réti Opening: 1 Nf3 Nf6.} Qc7 {[%emt 0:01:10] [#]} 10. a4 $146 {[%emt 0:03:10]} ({Predecessor:} 10. Qe2 e6 11. Nh4 Nb6 12. f4 f5 13. Nhf3 e5 14. Nb3 Be6 15. Be3 Rad8 16. Nbd2 Nd7 {1-0 (30) Koukal,O (1495)-Kubosova,J (1614) Kouty nad Desnou 2012}) 10... b6 {[%emt 0:00:14]} 11. Qe2 {[%emt 0:05:45] The position is equal.} Ba6 {[%emt 0:05:52]} 12. Nc4 {[%emt 0:00:20]} Nde5 {[%emt 0:02:34]} 13. Nfxe5 {[%emt 0:00:34]} Nxe5 {[%emt 0:00:02]} 14. f4 {[%emt 0:08:58]} Nxc4 {[%emt 0:03:54]} 15. dxc4 {[%emt 0:00:29]} Rad8 {[%emt 0:00:21]} 16. Be3 {[%emt 0:00:05]} e6 {[%emt 0:00:14][%cal Od6d5]} 17. Rfd1 {[%emt 0:01:30] Inhibits d5.} Rfe8 {[%emt 0:04:15]} 18. Qd3 {[%emt 0:13:16]} d5 {[%emt 0:07:37]} 19. exd5 {[%emt 0:00:00]} exd5 {[%emt 0:00:01]} 20. Bxd5 {[%emt 0:00:00] [#]} Rxd5 $1 {[%emt 0:00:38]} 21. Qxd5 {[%emt 0:00:00][%cal Oa4a5] Black must now prevent a5!} Rxe3 {[%emt 0:00:21]} 22. Kf2 {[%emt 0:00:00] This costs White the game.} (22. Qd8+ $15 Qxd8 23. Rxd8+ Bf8 24. Kf2) 22... Re8 $19 {[%emt 0:00:46]} 23. Qd7 {[%emt 0:00:00]} Qxd7 {[%emt 0:03:20]} (23... Qb8 $19 24. Qd3 Qc8) 24. Rxd7 $17 {[%emt 0:00:00]} Bxc4 {[%emt 0:00:06]} 25. Re1 {[%emt 0:00:00] Prevents Re2+.} Ra8 {[%emt 0:09:19]} 26. Ree7 {[%emt 0:00:00]} a6 {[%emt 0:00:03][%cal Ba7a6,Ba6b5][%mdl 32]} 27. Ra7 {[%emt 0:00:00]} Rd8 {[%emt 0:03:08]} 28. Rad7 {[%emt 0:00:04]} Rxd7 {[%emt 0:02:32]} 29. Rxd7 {[%emt 0:00:44]} b5 {[%emt 0:00:22]} 30. axb5 {[%emt 0:02:38]} (30. Rc7 $17 {is a better defense.}) 30... axb5 $19 {[%emt 0:00:18]} ({Not} 30... Bxb5 31. Rc7 $17) 31. Rc7 {[%emt 0:01:51]} Bf8 {[%emt 0:00:15]} 32. h4 {[%emt 0:00:55]} (32. g4 $142) 32... h5 {[%emt 0:00:07]} 33. Ke3 {[%emt 0:00:17]} Be6 {[%emt 0:00:21]} 34. Kf2 {[%emt 0:04:12]} b4 {[%emt 0:00:02]} 35. cxb4 $2 {[%emt 0:00:50]} (35. Ke2) 35... cxb4 {[%emt 0:00:02][%cal Bc5b4,Bb4b3][%mdl 32] [#] aiming for ...b3. Black is clearly winning.} 36. Rc2 {[%emt 0:00:39]} b3 {[%emt 0:00:32]} 37. Rd2 {[%emt 0:00:26]} Bg7 {[%emt 0:00:11] Hoping for ...Bf5.} 38. Kf3 {[%emt 0:00:50]} Bf5 {[%emt 0:00:44] Weighted Error Value: White=0.61/Black=0.11 (very precise)} 0-1

[Event "44th Chess Olympiad Open 2022"]
[Site "Chennai"]
[Date "2022.08.05"]
[Round "7.77"]
[White "Fancy, Stuart"]
[Black "Namale, Ben Nguku"]
[Result "0-1"]
[ECO "C01"]
[WhiteElo "1984"]
[BlackElo "1962"]
[Annotator "TA"]
[PlyCount "56"]
[EventDate "2022.07.29"]
[EventType "team-tourn"]
[EventCountry "IND"]
[SourceTitle "playchess.com"]
[Source "ChessBase"]
[SourceQuality "1"]
[WhiteTeam "Papua New Guinea"]
[BlackTeam "Kenya"]
[WhiteTeamCountry "PNG"]
[BlackTeamCountry "KEN"]
[TimeControl "40/5400+30:1800+30"]

{[%evp 10,56,19,8,8,-6,-7,0,0,0,0,0,0,-18,-9,-16,-16,-54,-48,-68,-22,-33,0,0,0,-81,-37,-44,-16,-50,-29,-95,0,-35,-6,-7,-7,-2,0,-44,-33,-64,-63,-165,-168,-175,-152,-489,-482]} 1. e4 {[%emt 0:00:15]} c6 {[%emt 0:00:09]} 2. d4 {[%emt 0:00:09]} d5 {[%emt 0:00:06]} 3. Nc3 {[%emt 0:00:07]} e6 {[%emt 0:00:59]} 4. Nf3 {[%emt 0:00:24]} Nf6 {[%emt 0:01:25]} 5. exd5 {[%emt 0:01:07]} exd5 {[%emt 0:00:24]} 6. Bd3 {[%emt 0:00:12]} Bg4 {[%emt 0:02:12] C01: French: Exchange Variation.} 7. O-O {[%emt 0:00:28]} Be7 {[%emt 0:00:14]} 8. h3 {[%emt 0:03:05]} Bh5 {[%emt 0:00:29] The position is equal.} 9. Bf4 {[%emt 0:02:03]} O-O {[%emt 0:01:28]} 10. Re1 {[%emt 0:01:20]} Nbd7 {[%emt 0:02:49]} 11. g4 {[%emt 0:00:35]} Bg6 {[%emt 0:00:00]} 12. Bxg6 {[%emt 0:00:19]} hxg6 {[%emt 0:00:00]} 13. Ne5 {[%emt 0:01:33] [#]} Nxe5 $146 {[%emt 0:07:34]} ({Predecessor:} 13... Re8 14. Qd3 Nf8 15. Re2 Ne6 16. Bg3 Qb6 17. Nxg6 Bb4 18. Nh4 Nxd4 19. Rxe8+ Rxe8 {0-1 (26) Uema,G (1652)-Trott,N (1710) Ivoti 2016}) 14. dxe5 {[%emt 0:00:24]} Nh7 {[%emt 0:00:29]} (14... Nd7 $15 {is superior.}) 15. Qd3 {[%emt 0:01:45]} Ng5 {[%emt 0:04:32]} 16. Bxg5 {[%emt 0:05:25]} Bxg5 {[%emt 0:00:21]} 17. Rad1 {[%emt 0:03:04]} (17. Ne2 $11 {keeps the balance.}) 17... Qe7 {[%emt 0:01:57]} 18. Re2 {[%emt 0:04:20]} Qe6 {[%emt 0:05:48]} 19. Qg3 {[%emt 0:01:30]} Bd8 {[%emt 0:01:04]} 20. f4 {[%emt 0:01:53] [#]} (20. Kg2 $11) 20... Re8 {[%emt 0:01:07]} (20... f6 $1 $17 21. Nb1 fxe5 22. fxe5 Bb6+ 23. Kh1 Rf7) 21. Rf1 {[%emt 0:02:14]} Bb6+ {[%emt 0:09:48]} (21... Bc7 {feels hotter.} 22. Qh4 b5 23. Kg2 a5) 22. Kh1 {[%emt 0:03:46]} d4 {[%emt 0:02:36]} 23. Ne4 {[%emt 0:02:50]} Qxa2 {[%emt 0:04:04]} 24. Nd6 {[%emt 0:08:41]} Qd5+ {[%emt 0:01:03]} 25. Kh2 {[%emt 0:00:23]} Re7 {[%emt 0:01:47]} 26. c4 {[%emt 0:00:37]} (26. Ne4 $15) 26... dxc3 $1 $19 {[%emt 0:03:12]} 27. bxc3 {[%emt 0:00:43]} Bc7 {[%emt 0:03:15]} 28. Nxb7 {[%emt 0:03:21] [#]} (28. Ne4 $17 {is more resistant.}) 28... Qb5 {[%emt 0:00:29][%csl LRb7,LRe2] Weighted Error Value: White=0.38/Black=0.16 (very precise)} 0-1

[Event "44th Chess Olympiad Open 2022"]
[Site "Chennai"]
[Date "2022.08.05"]
[Round "7.77"]
[White "Mukoko, Isaac"]
[Black "McCoy, Tom"]
[Result "1-0"]
[ECO "C02"]
[WhiteElo "1805"]
[BlackElo "1812"]
[Annotator "NA RC COMBH"]
[PlyCount "107"]
[EventDate "2022.07.29"]
[EventType "team-tourn"]
[EventCountry "IND"]
[SourceTitle "playchess.com"]
[Source "ChessBase"]
[SourceQuality "1"]
[WhiteTeam "Kenya"]
[BlackTeam "Papua New Guinea"]
[WhiteTeamCountry "KEN"]
[BlackTeamCountry "PNG"]
[TimeControl "40/5400+30:1800+30"]

1. e4 {[%emt 0:01:30]} c5 {[%emt 0:00:38]} 2. c3 {[%emt 0:00:14]} e6 {[%emt 0:03:07]} 3. d4 {[%emt 0:00:34]} cxd4 {[%emt 0:00:23]} 4. cxd4 {[%emt 0:00:10]} d5 {[%emt 0:00:11]} 5. e5 {[%emt 0:03:27]} Nc6 {[%emt 0:00:38]} 6. Nf3 {[%emt 0:00:55]} Bb4+ {[%emt 0:01:24]} 7. Nc3 {[%emt 0:04:58]} Nge7 {[%emt 0:00:41]} 8. Bd3 {[%emt 0:00:48]} Bd7 {[%emt 0:01:19]} 9. O-O {[%emt 0:00:11]} Ng6 {[%emt 0:03:50]} 10. Ne2 {[%emt 0:02:15]} Rc8 {[%emt 0:03:48]} 11. a3 {[%emt 0:03:08]} Be7 {[%emt 0:00:20]} 12. Bd2 {[%emt 0:02:07]} O-O {[%emt 0:01:44]} 13. b4 {[%emt 0:01:22]} a6 {[%emt 0:00:24]} 14. Qb3 {[%emt 0:01:36]} f6 {[%emt 0:01:32]} 15. Bxg6 {[%emt 0:08:31]} hxg6 {[%emt 0:05:29]} 16. Qd3 Kf7 {[%emt 0:07:30]} 17. Nf4 {[%emt 0:05:56]} f5 {[%emt 0:00:00]} 18. Nh3 {[%emt 0:00:00]} Rh8 {[%emt 0:00:30]} 19. Nhg5+ {[%emt 0:01:36]} Kg8 {[%emt 0:02:22]} 20. Rac1 {[%emt 0:00:52]} Rh5 {[%emt 0:01:36]} 21. h4 {[%emt 0:03:30]} Qb6 {[%emt 0:01:18]} 22. g3 {[%emt 0:02:21]} Rf8 {[%emt 0:05:42]} 23. Nh3 {[%emt 0:04:13]} Nd8 {[%emt 0:01:20]} 24. Rfd1 {[%emt 0:00:20]} Ba4 {[%emt 0:04:54]} 25. Re1 {[%emt 0:00:29]} Bb5 {[%emt 0:00:26]} 26. Qc3 {[%emt 0:00:32]} Bc4 {[%emt 0:00:47]} 27. Nf4 {[%emt 0:01:26]} Rh6 {[%emt 0:01:38]} 28. Nd3 {[%emt 0:02:50]} Rh5 {[%emt 0:02:32]} 29. Nf4 {[%emt 0:02:58]} Rh6 {[%emt 0:00:14]} 30. Be3 {[%emt 0:02:35]} Nf7 {[%emt 0:06:33]} 31. Nh3 {[%emt 0:01:52]} Rh5 {[%emt 0:02:19]} 32. Nf4 {[%emt 0:00:15]} Rh6 {[%emt 0:01:25]} 33. Nh3 {[%emt 0:00:21]} Rh5 {[%emt 0:03:18]} 34. Nf4 {[%emt 0:00:13]} Rh6 {[%emt 0:00:21]} 35. Nh3 {[%emt 0:00:47]} Qd8 {[%emt 0:03:33]} 36. Bxh6 {[%emt 0:00:44]} gxh6 {[%emt 0:00:18]} 37. Nf4 {[%emt 0:01:15]} Qd7 {[%emt 0:01:33]} 38. Nxg6 {[%emt 0:00:30]} Re8 {[%emt 0:00:52]} 39. Nxe7+ {[%emt 0:00:27]} Qxe7 {[%emt 0:00:31]} 40. Nd2 {[%emt 0:00:25]} b5 {[%emt 0:01:28]} 41. Qf3 {[%emt 0:30:31]} Kh7 {[%emt 0:30:29]} 42. Nf1 {[%emt 0:01:40]} Rg8 {[%emt 0:00:21]} 43. Kh2 {[%emt 0:01:48]} Nh8 {[%emt 0:01:00]} 44. Ne3 {[%emt 0:00:44]} Ng6 {[%emt 0:00:50]} 45. Ng2 {[%emt 0:00:23]} f4 {[%emt 0:02:58]} 46. h5 {[%emt 0:07:25]} fxg3+ {[%emt 0:00:38]} 47. fxg3 {[%emt 0:00:16]} Nh8 {[%emt 0:01:32]} 48. Rc2 {[%emt 0:01:53]} Nf7 {[%emt 0:00:35]} 49. Rf2 {[%emt 0:01:08]} Ng5 {[%emt 0:00:40]} 50. Qf6 {[%emt 0:00:31]} Qe8 {[%emt 0:00:35]} 51. g4 {[%emt 0:06:28]} Bd3 {[%emt 0:05:27]} 52. Rc1 {[%emt 0:00:47]} Rg7 {[%emt 0:01:22]} 53. Qf8 {[%emt 0:00:32]} Qd7 {[%emt 0:00:23]} 54. Rc8 {[%emt 0:00:25]} 1-0

[Event "44th Chess Olympiad Open 2022"]
[Site "Chennai"]
[Date "2022.08.05"]
[Round "7.77"]
[White "Jones, Rupert"]
[Black "Njoroge, Martin"]
[Result "0-1"]
[ECO "B23"]
[WhiteElo "1766"]
[BlackElo "1973"]
[Annotator "TA"]
[PlyCount "88"]
[EventDate "2022.07.29"]
[EventType "team-tourn"]
[EventCountry "IND"]
[SourceTitle "playchess.com"]
[Source "ChessBase"]
[SourceQuality "1"]
[WhiteTeam "Papua New Guinea"]
[BlackTeam "Kenya"]
[WhiteTeamCountry "PNG"]
[BlackTeamCountry "KEN"]
[TimeControl "40/5400+30:1800+30"]

{[%evp 9,88,12,25,0,6,-3,10,8,3,8,3,5,50,0,0,-15,-28,-15,0,0,14,26,2,-12,20,-62,-74,-72,0,-117,-94,-97,-93,-123,-123,-130,-119,-132,-126,-132,-121,-121,-125,-133,-98,-100,-48,-69,-71,-114,-119,-101,-89,-91,-72,-150,-141,-271,-268,-260,-212,-210,-206,-207,-188,-186,-182,-194,-183,-347,-421,-662,-656,-994,-993,-2406,-1738,-5834,-5820,-5002,-5002]} 1. e4 {[%emt 0:00:06]} c5 {[%emt 0:03:54]} 2. Nc3 {[%emt 0:00:31]} a6 {[%emt 0:03:47]} 3. g3 {[%emt 0:01:38]} b5 {[%emt 0:01:34]} 4. Bg2 {[%emt 0:00:16]} Bb7 {[%emt 0:00:07]} 5. d3 {[%emt 0:00:57]} Nf6 {[%emt 0:01:29]} 6. Be3 {[%emt 0:00:24] B23: Closed Sicilian: Lines without g3.} d6 {[%emt 0:00:31]} 7. Nh3 {[%emt 0:05:46] [#]} e5 $146 {[%emt 0:08:26]} ({Predecessor:} 7... g6 8. Nf4 e6 9. h4 h5 10. Nh3 Nbd7 11. Ng5 Ng4 12. d4 Nxe3 13. fxe3 Be7 14. Nxf7 Kxf7 {0-1 (31) Splitek,L (1788)-Vorobyov,Y (2214) Hradec Kralove 2010}) 8. O-O {[%emt 0:03:18] The position is equal.} Be7 {[%emt 0:02:23]} 9. f4 {[%emt 0:10:53]} O-O {[%emt 0:02:48]} 10. Nf2 {[%emt 0:13:33]} Qc7 {[%emt 0:07:30]} 11. f5 {[%emt 0:03:15]} ({Better is} 11. fxe5 $14 dxe5 12. g4) 11... b4 {[%emt 0:03:13]} 12. Ne2 {[%emt 0:01:05]} d5 {[%emt 0:00:30]} 13. g4 {[%emt 0:01:56]} dxe4 {[%emt 0:05:00]} 14. dxe4 {[%emt 0:00:10]} Rd8 {[%emt 0:02:17]} 15. Qc1 {[%emt 0:00:07]} Ne8 {[%emt 0:04:57]} 16. c3 {[%emt 0:02:27]} (16. g5 $5 {[%cal Rf5f6]}) 16... Nc6 {[%emt 0:00:37]} 17. Qc2 {[%emt 0:07:10]} (17. g5 $1 $11) 17... bxc3 $15 {[%emt 0:04:47]} 18. bxc3 {[%emt 0:02:54] [#]} Na5 {[%emt 0:00:40]} ({Black should try} 18... h6 $1 $17) 19. Rad1 {[%emt 0:00:16]} (19. g5 $1 $11 {remains equal.}) 19... Nc4 $36 {[%emt 0:01:13][%mdl 2048] Black is in control.} 20. Bc1 {[%emt 0:00:03]} h6 {[%emt 0:01:14] Prevents g5.} 21. Qb3 {[%emt 0:01:21] Black must now prevent Rxd8.} Ned6 {[%emt 0:00:45]} 22. Rd3 {[%emt 0:02:45]} Rab8 {[%emt 0:00:49][%cal Ob7e4] Hoping for ...Bxe4!} 23. Qc2 {[%emt 0:00:21]} Bh4 {[%emt 0:09:26]} 24. Rh3 {[%emt 0:07:53]} Qe7 {[%emt 0:04:25]} 25. Ng3 {[%emt 0:04:01]} Bg5 {[%emt 0:05:31] Black is more active.} 26. Nh5 {[%emt 0:05:54][%cal Of5f6]} Ne8 {[%emt 0:01:57] Against f6} 27. Nd3 {[%emt 0:04:10]} Nf6 {[%emt 0:02:54]} (27... a5 $17 28. a4 Ba6) 28. Nxf6+ {[%emt 0:00:22]} Bxf6 {[%emt 0:06:09] White is now going downhill.} 29. Qa4 {[%emt 0:05:32]} Nb6 {[%emt 0:00:46]} 30. Qc2 {[%emt 0:00:48]} c4 {[%emt 0:01:32]} 31. Nf2 {[%emt 0:01:18]} Bc6 {[%emt 0:02:42]} 32. Be3 {[%emt 0:03:12]} (32. g5 $142 Bxg5 33. Bxg5 Qxg5 34. Rg3) 32... Na4 $17 {[%emt 0:01:13] Threatens to win with ...Rb2.} 33. Bc1 {[%emt 0:02:02] Prevents Rb2.} (33. Qc1 $17) 33... Bg5 $19 {[%emt 0:01:24]} 34. Nd1 {[%emt 0:02:46]} Bxc1 {[%emt 0:01:14]} 35. Qxc1 {[%emt 0:00:01][%cal Of5f6]} Qc5+ {[%emt 0:00:41]} 36. Kh1 {[%emt 0:00:34]} Rd3 {[%emt 0:00:30]} 37. Rxd3 {[%emt 0:01:42]} cxd3 {[%emt 0:00:17]} 38. Qd2 {[%emt 0:01:50]} Qc4 {[%emt 0:02:07]} 39. Re1 {[%emt 0:00:18]} (39. g5 {might work better.}) 39... Rb1 {[%emt 0:01:22]} 40. Bf3 {[%emt 0:02:00]} (40. f6 $142 gxf6 41. h3) 40... Nc5 {[%emt 0:01:35][%cal Rc6e4]} 41. Qg2 {[%emt 0:12:40] [#]} Bxe4 $1 {[%emt 0:04:11][%cal Od3d2][%mdl 512] ...d2! is the strong threat.} 42. Bxe4 {[%emt 0:04:14]} (42. Kg1 d2) 42... Nxe4 {[%emt 0:00:54]} 43. Qxe4 {[%emt 0:00:11]} Qxe4+ {[%emt 0:00:22]} 44. Rxe4 {[%emt 0:01:20]} Rxd1+ {[%emt 0:00:11] Weighted Error Value: White=0.65/Black=0.11 (very precise)} 0-1